[Event "*** Titled Tuesday Blitz"]
[Site "Chess.com"]
[Date "2021.04.20"]
[Round "11"]
[White "Nozdrachev_Leonid"]
[Black "InitiatingASC"]
[Result "1-0"]
[WhiteElo "2561"]
[BlackElo "2428"]
[TimeControl "180+1"]
[EndTime "12:06:30 PDT"]
[Termination "Nozdrachev_Leonid won by checkmate"]

1. e4 {[%clk 0:03:00.9]} 1... c5 {[%clk 0:03:00.2]} 2. c3 {[%clk 0:03:00.3]}
2... Nf6 {[%clk 0:02:59.8]} 3. e5 {[%clk 0:03:00.4]} 3... Nd5 {[%clk 0:03:00.2]}
4. d4 {[%clk 0:03:00.1]} 4... cxd4 {[%clk 0:03:00.6]} 5. cxd4 {[%clk 0:03:01]}
5... Nc6 {[%clk 0:03:01.1]} 6. Nf3 {[%clk 0:03:01]} 6... d6 {[%clk 0:03:01]} 7.
Bc4 {[%clk 0:03:00.6]} 7... Nb6 {[%clk 0:03:01]} 8. Bb5 {[%clk 0:02:57.4]} 8...
d5 {[%clk 0:03:00.9]} 9. Nh4 {[%clk 0:02:54.9]} 9... e6 {[%clk 0:02:57.8]} 10.
Nf3 {[%clk 0:02:54.4]} 10... Bd7 {[%clk 0:02:50.4]} 11. Be2 {[%clk 0:02:48.6]}
11... Bb4+ {[%clk 0:02:49.3]} 12. Bd2 {[%clk 0:02:40.9]} 12... Qe7 {[%clk
0:02:46.9]} 13. O-O {[%clk 0:02:39.9]} 13... Bxd2 {[%clk 0:02:38.9]} 14. Qxd2
{[%clk 0:02:38.2]} 14... h6 {[%clk 0:02:34.4]} 15. Nc3 {[%clk 0:02:37.7]} 15...
a6 {[%clk 0:02:25.9]} 16. a3 {[%clk 0:02:29.6]} 16... g5 {[%clk 0:02:25.9]} 17.
h3 {[%clk 0:02:22.6]} 17... O-O-O {[%clk 0:02:19.5]} 18. b4 {[%clk 0:02:21.4]}
18... Na7 {[%clk 0:02:17.1]} 19. a4 {[%clk 0:02:09.3]} 19... Kb8 {[%clk
0:02:09]} 20. b5 {[%clk 0:02:01.9]} 20... a5 {[%clk 0:02:03.1]} 21. Na2 {[%clk
0:01:56.3]} 21... h5 {[%clk 0:01:29]} 22. Qxg5 {[%clk 0:01:50.5]} 22... Qa3
{[%clk 0:01:16.7]} 23. Rfb1 {[%clk 0:01:32.7]} 23... Rdg8 {[%clk 0:01:15.5]} 24.
Qf4 {[%clk 0:01:28]} 24... Rg7 {[%clk 0:01:06]} 25. Ng5 {[%clk 0:00:58.1]} 25...
h4 {[%clk 0:00:46.7]} 26. Bg4 {[%clk 0:00:49.4]} 26... Nc4 {[%clk 0:00:39.1]}
27. Qf6 {[%clk 0:00:34.9]} 27... Qf8 {[%clk 0:00:24.4]} 28. Nc3 {[%clk
0:00:29.8]} 28... Nc8 {[%clk 0:00:22.5]} 29. Qf4 {[%clk 0:00:25.2]} 29... N8b6
{[%clk 0:00:22.3]} 30. Nf3 {[%clk 0:00:24.4]} 30... Qe7 {[%clk 0:00:20.5]} 31.
Nd1 {[%clk 0:00:16.7]} 31... Rhg8 {[%clk 0:00:19.3]} 32. Qf6 {[%clk 0:00:15.4]}
32... Qf8 {[%clk 0:00:17.5]} 33. Ne3 {[%clk 0:00:14]} 33... Nxe3 {[%clk
0:00:15.7]} 34. fxe3 {[%clk 0:00:14.9]} 34... Nc4 {[%clk 0:00:16]} 35. Qf4
{[%clk 0:00:14.3]} 35... Qe7 {[%clk 0:00:14.1]} 36. Rc1 {[%clk 0:00:13]} 36...
Be8 {[%clk 0:00:14]} 37. e4 {[%clk 0:00:12.2]} 37... Qd8 {[%clk 0:00:11.2]} 38.
exd5 {[%clk 0:00:11.6]} 38... Qxd5 {[%clk 0:00:12.1]} 39. Ra2 {[%clk 0:00:08.5]}
39... Ne3 {[%clk 0:00:09.6]} 40. Qxe3 {[%clk 0:00:04.3]} 40... Qxa2 {[%clk
0:00:09.3]} 41. Qc3 {[%clk 0:00:04.5]} 41... Qxa4 {[%clk 0:00:08.7]} 42. Qc7+
{[%clk 0:00:02.8]} 42... Ka7 {[%clk 0:00:09.2]} 43. b6+ {[%clk 0:00:02.7]} 43...
Ka6 {[%clk 0:00:09.8]} 44. Qb8 {[%clk 0:00:02.6]} 44... Kxb6 {[%clk 0:00:09.6]}
45. Rb1+ {[%clk 0:00:02.2]} 45... Bb5 {[%clk 0:00:07.5]} 46. Qd6+ {[%clk
0:00:01.6]} 46... Ka7 {[%clk 0:00:07]} 47. Qc5+ {[%clk 0:00:02.1]} 47... Ka6
{[%clk 0:00:06.4]} 48. Qd6+ {[%clk 0:00:02.3]} 48... Bc6 {[%clk 0:00:06.9]} 49.
Qc5 {[%clk 0:00:03.2]} 49... Rxg4 {[%clk 0:00:06]} 50. Qb6# {[%clk 0:00:03]} 1-0

[Event "*** Titled Tuesday Blitz"]
[Site "Chess.com"]
[Date "2021.04.20"]
[Round "11"]
[White "Rytenko_V"]
[Black "LamaChampetre"]
[Result "1-0"]
[WhiteElo "2342"]
[BlackElo "2210"]
[TimeControl "180+1"]
[EndTime "12:06:32 PDT"]
[Termination "Rytenko_V won on time"]

1. d4 {[%clk 0:03:00.9]} 1... Nf6 {[%clk 0:02:59.1]} 2. c4 {[%clk 0:03:00.4]}
2... g6 {[%clk 0:02:59.7]} 3. Nc3 {[%clk 0:03:00.4]} 3... d5 {[%clk 0:03:00.3]}
4. Nf3 {[%clk 0:02:57.2]} 4... Bg7 {[%clk 0:02:59.7]} 5. Bg5 {[%clk 0:02:57.7]}
5... Ne4 {[%clk 0:02:59.2]} 6. Bf4 {[%clk 0:02:53.5]} 6... Nxc3 {[%clk
0:02:51.6]} 7. bxc3 {[%clk 0:02:50.1]} 7... dxc4 {[%clk 0:02:40.2]} 8. a4 {[%clk
0:02:44.9]} 8... O-O {[%clk 0:02:38.9]} 9. e3 {[%clk 0:02:44.9]} 9... Be6 {[%clk
0:02:37.5]} 10. Ng5 {[%clk 0:02:44.4]} 10... Bd5 {[%clk 0:02:32.3]} 11. e4
{[%clk 0:02:43.9]} 11... h6 {[%clk 0:02:32.3]} 12. Nf3 {[%clk 0:02:15.5]} 12...
Bxe4 {[%clk 0:02:28.5]} 13. Bxc4 {[%clk 0:02:16.1]} 13... Nd7 {[%clk 0:02:13.3]}
14. Qe2 {[%clk 0:02:13.1]} 14... Nf6 {[%clk 0:02:11.7]} 15. O-O {[%clk
0:02:09.6]} 15... Kh7 {[%clk 0:01:56.1]} 16. Rfe1 {[%clk 0:02:09]} 16... e6
{[%clk 0:01:50]} 17. h4 {[%clk 0:01:46.8]} 17... Bd5 {[%clk 0:01:46.8]} 18. Bd3
{[%clk 0:01:46.7]} 18... Nh5 {[%clk 0:01:44.8]} 19. Bd2 {[%clk 0:01:23.2]} 19...
Bxf3 {[%clk 0:01:40.4]} 20. Qxf3 {[%clk 0:01:24.1]} 20... Qxh4 {[%clk
0:01:39.7]} 21. g3 {[%clk 0:01:22.6]} 21... Qh3 {[%clk 0:01:22]} 22. Re4 {[%clk
0:01:11.2]} 22... Bf6 {[%clk 0:00:59.4]} 23. Rg4 {[%clk 0:00:54.4]} 23... Rad8
{[%clk 0:00:46.9]} 24. Bf1 {[%clk 0:00:52.1]} 24... Qxg4 {[%clk 0:00:41.2]} 25.
Qxg4 {[%clk 0:00:53]} 25... Bg7 {[%clk 0:00:40.8]} 26. Bd3 {[%clk 0:00:49.7]}
26... Nf6 {[%clk 0:00:40.4]} 27. Qf3 {[%clk 0:00:49.7]} 27... c5 {[%clk
0:00:39.4]} 28. Be3 {[%clk 0:00:49.5]} 28... Nd5 {[%clk 0:00:37.7]} 29. Be4
{[%clk 0:00:29]} 29... Nxc3 {[%clk 0:00:33.5]} 30. Bxb7 {[%clk 0:00:09.9]} 30...
cxd4 {[%clk 0:00:33.5]} 31. Bd2 {[%clk 0:00:10.2]} 31... d3 {[%clk 0:00:30.3]}
32. Bxc3 {[%clk 0:00:08.5]} 32... Bxc3 {[%clk 0:00:31.2]} 33. Rd1 {[%clk
0:00:08.9]} 33... Bg7 {[%clk 0:00:22.2]} 34. Rxd3 {[%clk 0:00:08.8]} 34... Rb8
{[%clk 0:00:22]} 35. a5 {[%clk 0:00:08.7]} 35... Rfe8 {[%clk 0:00:14.8]} 36.
Qxf7 {[%clk 0:00:06.8]} 36... Rf8 {[%clk 0:00:12.6]} 37. Qc7 {[%clk 0:00:05.1]}
37... h5 {[%clk 0:00:07.3]} 38. Rd7 {[%clk 0:00:04.8]} 38... Rg8 {[%clk
0:00:03.4]} 39. Rxg7+ {[%clk 0:00:04.9]} 39... Rxg7 {[%clk 0:00:04]} 40. Qxb8
{[%clk 0:00:05.4]} 40... Kh6 {[%clk 0:00:04.3]} 41. a6 {[%clk 0:00:05.8]} 41...
h4 {[%clk 0:00:03.8]} 42. Qf4+ {[%clk 0:00:05.7]} 42... Kh7 {[%clk 0:00:03.5]}
43. Qxh4+ {[%clk 0:00:05.6]} 43... Kg8 {[%clk 0:00:03.3]} 44. Qe4 {[%clk
0:00:06.5]} 44... Kf7 {[%clk 0:00:03.5]} 45. Qe5 {[%clk 0:00:07]} 45... Rh7
{[%clk 0:00:03.1]} 46. Bc8 {[%clk 0:00:06.4]} 46... Kg8 {[%clk 0:00:02.6]} 47.
Bxe6+ {[%clk 0:00:06.7]} 47... Kf8 {[%clk 0:00:02.2]} 48. Qf6+ {[%clk 0:00:07]}
48... Ke8 {[%clk 0:00:02.4]} 49. Bg4 {[%clk 0:00:07]} 1-0

[Event "*** Titled Tuesday Blitz"]
[Site "Chess.com"]
[Date "2021.04.20"]
[Round "11"]
[White "Anton_Demchenko"]
[Black "Korchmar_Vasiliy"]
[Result "1-0"]
[WhiteElo "2911"]
[BlackElo "2681"]
[TimeControl "180+1"]
[EndTime "12:06:34 PDT"]
[Termination "Anton_Demchenko won on time"]

1. e4 {[%clk 0:03:00.9]} 1... c5 {[%clk 0:02:59]} 2. Nf3 {[%clk 0:03:00.3]} 2...
d6 {[%clk 0:02:59.6]} 3. d4 {[%clk 0:02:59.7]} 3... cxd4 {[%clk 0:03:00.5]} 4.
Qxd4 {[%clk 0:02:56.9]} 4... Nc6 {[%clk 0:02:59.9]} 5. Qe3 {[%clk 0:02:57.3]}
5... Nf6 {[%clk 0:02:58.8]} 6. Nc3 {[%clk 0:02:54.7]} 6... g6 {[%clk 0:02:57.8]}
7. h3 {[%clk 0:02:54.2]} 7... Bg7 {[%clk 0:02:57.6]} 8. Bc4 {[%clk 0:02:54.8]}
8... O-O {[%clk 0:02:57.4]} 9. O-O {[%clk 0:02:55]} 9... Be6 {[%clk 0:02:53]}
10. Bxe6 {[%clk 0:02:50.9]} 10... fxe6 {[%clk 0:02:53.9]} 11. Ne2 {[%clk
0:02:51.5]} 11... Qd7 {[%clk 0:02:12.8]} 12. Rd1 {[%clk 0:02:50.2]} 12... Nh5
{[%clk 0:02:03.4]} 13. c3 {[%clk 0:01:54.1]} 13... e5 {[%clk 0:01:52.6]} 14. Qd3
{[%clk 0:01:50.5]} 14... Kh8 {[%clk 0:01:47.5]} 15. b4 {[%clk 0:01:38.5]} 15...
Nd8 {[%clk 0:01:44.3]} 16. c4 {[%clk 0:01:19.4]} 16... Ne6 {[%clk 0:01:37.6]}
17. c5 {[%clk 0:01:18]} 17... Rad8 {[%clk 0:01:37.6]} 18. cxd6 {[%clk
0:01:08.9]} 18... exd6 {[%clk 0:01:38.5]} 19. Ng5 {[%clk 0:00:44.2]} 19... Qe7
{[%clk 0:00:50.9]} 20. Nxe6 {[%clk 0:00:43.6]} 20... Qxe6 {[%clk 0:00:51.8]} 21.
Bg5 {[%clk 0:00:43.7]} 21... Rd7 {[%clk 0:00:50.4]} 22. Qd5 {[%clk 0:00:41]}
22... Qe8 {[%clk 0:00:48]} 23. Qb3 {[%clk 0:00:22.3]} 23... h6 {[%clk
0:00:46.6]} 24. Be3 {[%clk 0:00:22.8]} 24... g5 {[%clk 0:00:43.5]} 25. Ng3
{[%clk 0:00:17.1]} 25... Nxg3 {[%clk 0:00:39.7]} 26. fxg3 {[%clk 0:00:18]} 26...
Qg6 {[%clk 0:00:38.9]} 27. Qd5 {[%clk 0:00:15.5]} 27... g4 {[%clk 0:00:32.8]}
28. h4 {[%clk 0:00:15.9]} 28... a6 {[%clk 0:00:29.9]} 29. Rac1 {[%clk
0:00:15.8]} 29... Rdf7 {[%clk 0:00:26.1]} 30. Rf1 {[%clk 0:00:15.9]} 30... h5
{[%clk 0:00:18.2]} 31. Rxf7 {[%clk 0:00:15.8]} 31... Rxf7 {[%clk 0:00:19.1]} 32.
a4 {[%clk 0:00:14]} 32... Kh7 {[%clk 0:00:16.9]} 33. Rd1 {[%clk 0:00:12.7]}
33... Rd7 {[%clk 0:00:08.6]} 34. Rf1 {[%clk 0:00:12]} 34... Bh6 {[%clk
0:00:07.1]} 35. Bxh6 {[%clk 0:00:11.3]} 35... Qxh6 {[%clk 0:00:04.9]} 36. Kh2
{[%clk 0:00:10.3]} 36... Qg6 {[%clk 0:00:04.5]} 37. Rf5 {[%clk 0:00:10.4]} 37...
Re7 {[%clk 0:00:02.8]} 38. Rg5 {[%clk 0:00:09.1]} 38... Qf7 {[%clk 0:00:03.2]}
39. Qd3 {[%clk 0:00:06]} 39... Re6 {[%clk 0:00:02]} 40. Rf5 {[%clk 0:00:05.6]}
40... Rf6 {[%clk 0:00:02.1]} 41. Rg5 {[%clk 0:00:03.3]} 41... Re6 {[%clk
0:00:01.3]} 42. Qd5 {[%clk 0:00:03.3]} 42... Kh6 {[%clk 0:00:01.1]} 43. b5
{[%clk 0:00:02.9]} 1-0

[Event "*** Titled Tuesday Blitz"]
[Site "Chess.com"]
[Date "2021.04.20"]
[Round "11"]
[White "ybruned"]
[Black "ukchessbomber"]
[Result "1-0"]
[WhiteElo "2355"]
[BlackElo "2520"]
[TimeControl "180+1"]
[EndTime "12:06:34 PDT"]
[Termination "ybruned won on time"]

1. b3 {[%clk 0:03:00.9]} 1... a5 {[%clk 0:02:59.9]} 2. Bb2 {[%clk 0:03:00]} 2...
a4 {[%clk 0:03:00.8]} 3. a3 {[%clk 0:03:00.7]} 3... d5 {[%clk 0:02:59.1]} 4. b4
{[%clk 0:02:59.6]} 4... Nf6 {[%clk 0:02:59]} 5. e3 {[%clk 0:03:00.2]} 5... c5
{[%clk 0:02:59.4]} 6. bxc5 {[%clk 0:02:59.2]} 6... e6 {[%clk 0:02:59.5]} 7. d4
{[%clk 0:02:59.5]} 7... Be7 {[%clk 0:02:59]} 8. Nf3 {[%clk 0:02:59.4]} 8... O-O
{[%clk 0:02:59.9]} 9. Be2 {[%clk 0:02:59.9]} 9... b6 {[%clk 0:02:59.9]} 10. cxb6
{[%clk 0:02:29.2]} 10... Qxb6 {[%clk 0:03:00.8]} 11. Bc1 {[%clk 0:02:29.5]}
11... Kh8 {[%clk 0:02:56.4]} 12. O-O {[%clk 0:02:28.7]} 12... Rg8 {[%clk
0:02:55.3]} 13. c4 {[%clk 0:02:18.9]} 13... dxc4 {[%clk 0:02:52.6]} 14. Ne5
{[%clk 0:02:16.7]} 14... Rf8 {[%clk 0:02:50.5]} 15. Nxc4 {[%clk 0:02:11]} 15...
Qc7 {[%clk 0:02:49.6]} 16. Ne5 {[%clk 0:02:07.2]} 16... Bb7 {[%clk 0:02:49]} 17.
Nd2 {[%clk 0:01:51.8]} 17... Nd5 {[%clk 0:02:47.3]} 18. Bb2 {[%clk 0:01:48.8]}
18... f6 {[%clk 0:02:46.1]} 19. Nec4 {[%clk 0:01:46.7]} 19... Nc6 {[%clk
0:02:26.2]} 20. Rc1 {[%clk 0:01:45.3]} 20... Nb6 {[%clk 0:02:25.9]} 21. Bf3
{[%clk 0:01:43.8]} 21... Nxc4 {[%clk 0:02:17.1]} 22. Nxc4 {[%clk 0:01:42.3]}
22... Qd8 {[%clk 0:02:11.9]} 23. Qc2 {[%clk 0:01:36.4]} 23... Rc8 {[%clk
0:02:10.6]} 24. Qxa4 {[%clk 0:01:31.4]} 24... Ra8 {[%clk 0:02:02.7]} 25. Qb3
{[%clk 0:01:28]} 25... Rb8 {[%clk 0:02:00.7]} 26. Qa2 {[%clk 0:01:19.3]} 26...
Na5 {[%clk 0:01:43.4]} 27. Bxb7 {[%clk 0:01:16.2]} 27... Nxb7 {[%clk 0:01:34.1]}
28. e4 {[%clk 0:01:10.3]} 28... f5 {[%clk 0:01:33]} 29. exf5 {[%clk 0:01:08.8]}
29... Qd5 {[%clk 0:01:33.2]} 30. Qa1 {[%clk 0:01:06]} 30... Nd6 {[%clk
0:01:18.3]} 31. Nxd6 {[%clk 0:00:42.4]} 31... Bxd6 {[%clk 0:01:19.2]} 32. fxe6
{[%clk 0:00:43]} 32... Qh5 {[%clk 0:00:44.4]} 33. g3 {[%clk 0:00:39.3]} 33...
Be7 {[%clk 0:00:27.6]} 34. d5 {[%clk 0:00:35.6]} 34... Bf6 {[%clk 0:00:27.8]}
35. Bxf6 {[%clk 0:00:34.5]} 35... Rxf6 {[%clk 0:00:28.7]} 36. Qd4 {[%clk
0:00:30.9]} 36... Rh6 {[%clk 0:00:27.8]} 37. h4 {[%clk 0:00:30.2]} 37... Rg6
{[%clk 0:00:15.8]} 38. e7 {[%clk 0:00:30.4]} 38... Rd6 {[%clk 0:00:10.1]} 39.
Qe4 {[%clk 0:00:24.9]} 39... Re8 {[%clk 0:00:08.1]} 40. Rcd1 {[%clk 0:00:23.5]}
40... Kg8 {[%clk 0:00:04.3]} 41. Rfe1 {[%clk 0:00:22.8]} 41... Qf7 {[%clk
0:00:04.7]} 42. Qe5 {[%clk 0:00:22.1]} 42... Qg6 {[%clk 0:00:03.2]} 43. Qe4
{[%clk 0:00:20.6]} 43... Qf7 {[%clk 0:00:03.3]} 44. a4 {[%clk 0:00:20.1]} 44...
Kh8 {[%clk 0:00:02.3]} 45. a5 {[%clk 0:00:20.4]} 45... Kg8 {[%clk 0:00:02.7]}
46. Qe5 {[%clk 0:00:20.8]} 46... Qg6 {[%clk 0:00:02.7]} 47. a6 {[%clk
0:00:20.2]} 47... Rxa6 {[%clk 0:00:02.2]} 48. d6 {[%clk 0:00:20.7]} 48... Ra7
{[%clk 0:00:01.8]} 49. d7 {[%clk 0:00:20.7]} 49... Rxd7 {[%clk 0:00:02.7]} 50.
Rxd7 {[%clk 0:00:20.2]} 50... h6 {[%clk 0:00:02.9]} 51. Rd8 {[%clk 0:00:20.4]}
51... Kh7 {[%clk 0:00:03.8]} 52. Rxe8 {[%clk 0:00:20.6]} 52... Qxe8 {[%clk
0:00:04.7]} 53. Qe4+ {[%clk 0:00:20.9]} 53... Kh8 {[%clk 0:00:04.6]} 54. h5
{[%clk 0:00:21.5]} 54... g5 {[%clk 0:00:02.6]} 55. Qg6 {[%clk 0:00:18.7]} 1-0

[Event "*** Titled Tuesday Blitz"]
[Site "Chess.com"]
[Date "2021.04.20"]
[Round "11"]
[White "kritipatel"]
[Black "chessdiamant"]
[Result "0-1"]
[WhiteElo "1764"]
[BlackElo "2312"]
[TimeControl "180+1"]
[EndTime "12:06:34 PDT"]
[Termination "chessdiamant won by checkmate"]

1. e4 {[%clk 0:03:00.9]} 1... e6 {[%clk 0:02:59.3]} 2. d4 {[%clk 0:02:59.8]}
2... d5 {[%clk 0:02:58.6]} 3. Nc3 {[%clk 0:02:59.3]} 3... Nf6 {[%clk 0:02:55.3]}
4. e5 {[%clk 0:02:59.1]} 4... Nfd7 {[%clk 0:02:55]} 5. f4 {[%clk 0:02:59.5]}
5... c5 {[%clk 0:02:54.8]} 6. Nf3 {[%clk 0:02:59.3]} 6... Nc6 {[%clk 0:02:44.3]}
7. Be3 {[%clk 0:02:59.1]} 7... cxd4 {[%clk 0:02:40.9]} 8. Nxd4 {[%clk
0:02:57.8]} 8... Bc5 {[%clk 0:02:39.9]} 9. Ncb5 {[%clk 0:02:33.1]} 9... O-O
{[%clk 0:02:33.1]} 10. Be2 {[%clk 0:02:21.3]} 10... a6 {[%clk 0:02:27.2]} 11.
Nc3 {[%clk 0:02:06.3]} 11... Nxd4 {[%clk 0:02:22.4]} 12. Bxd4 {[%clk 0:02:05.2]}
12... b5 {[%clk 0:02:17.9]} 13. Bxc5 {[%clk 0:02:00.5]} 13... Nxc5 {[%clk
0:02:17.2]} 14. O-O {[%clk 0:02:00.5]} 14... b4 {[%clk 0:02:13]} 15. Qd4 {[%clk
0:01:51.5]} 15... bxc3 {[%clk 0:02:07.5]} 16. Qxc5 {[%clk 0:01:51.3]} 16... cxb2
{[%clk 0:02:08.4]} 17. Rab1 {[%clk 0:01:51.5]} 17... Rb8 {[%clk 0:02:07]} 18.
Qc3 {[%clk 0:01:39]} 18... Qb6+ {[%clk 0:02:05.9]} 19. Kh1 {[%clk 0:01:38.5]}
19... Bd7 {[%clk 0:02:06.3]} 20. Bd3 {[%clk 0:01:37.8]} 20... Qb4 {[%clk
0:01:58]} 21. Qc7 {[%clk 0:01:31.1]} 21... Bb5 {[%clk 0:01:51.1]} 22. c3 {[%clk
0:01:17.1]} 22... Qa3 {[%clk 0:01:35]} 23. Bxb5 {[%clk 0:01:07.6]} 23... Rxb5
{[%clk 0:01:32.6]} 24. f5 {[%clk 0:01:01.5]} 24... exf5 {[%clk 0:01:22.8]} 25.
Rxf5 {[%clk 0:01:01.1]} 25... Qxa2 {[%clk 0:01:22.4]} 26. Rff1 {[%clk 0:01:00]}
26... Ra5 {[%clk 0:01:01.1]} 27. e6 {[%clk 0:00:49.4]} 27... Qxb1 {[%clk
0:00:45.5]} 28. exf7+ {[%clk 0:00:36]} 28... Kh8 {[%clk 0:00:43]} 29. Rxb1
{[%clk 0:00:28]} 29... Ra1 {[%clk 0:00:42.2]} 30. h3 {[%clk 0:00:25.4]} 30...
Rxb1+ {[%clk 0:00:41.1]} 31. Kh2 {[%clk 0:00:25.4]} 31... Rh1+ {[%clk
0:00:28.1]} 32. Kxh1 {[%clk 0:00:21.5]} 32... b1=Q+ {[%clk 0:00:27.2]} 33. Kh2
{[%clk 0:00:21.4]} 33... Qf5 {[%clk 0:00:27.1]} 34. Qe7 {[%clk 0:00:20.1]} 34...
Qxf7 {[%clk 0:00:25.9]} 35. Qe3 {[%clk 0:00:19.2]} 35... Qf4+ {[%clk 0:00:25.4]}
36. Qxf4 {[%clk 0:00:16.2]} 36... Rxf4 {[%clk 0:00:26.3]} 37. Kg3 {[%clk
0:00:17]} 37... Rc4 {[%clk 0:00:25.5]} 38. h4 {[%clk 0:00:17.3]} 38... Rxc3+
{[%clk 0:00:25]} 39. Kg4 {[%clk 0:00:18.2]} 39... a5 {[%clk 0:00:24.3]} 40. Kh5
{[%clk 0:00:19.1]} 40... a4 {[%clk 0:00:23.4]} 41. g4 {[%clk 0:00:20]} 41... a3
{[%clk 0:00:22.6]} 42. g5 {[%clk 0:00:20.8]} 42... a2 {[%clk 0:00:21.1]} 43. g6
{[%clk 0:00:21.7]} 43... hxg6+ {[%clk 0:00:21]} 44. Kxg6 {[%clk 0:00:20.7]}
44... a1=Q {[%clk 0:00:19.8]} 45. Kh5 {[%clk 0:00:20.8]} 45... Qd1+ {[%clk
0:00:18.2]} 46. Kg5 {[%clk 0:00:20.1]} 46... Rg3+ {[%clk 0:00:17.5]} 47. Kf5
{[%clk 0:00:20.1]} 47... Qf3+ {[%clk 0:00:17]} 48. Ke6 {[%clk 0:00:19.6]} 48...
Qe4+ {[%clk 0:00:16.5]} 49. Kd7 {[%clk 0:00:19.5]} 49... Rc3 {[%clk 0:00:15.1]}
50. Kd6 {[%clk 0:00:18.8]} 50... d4 {[%clk 0:00:15.4]} 51. h5 {[%clk 0:00:19.7]}
51... d3 {[%clk 0:00:16.1]} 52. h6 {[%clk 0:00:20.6]} 52... gxh6 {[%clk
0:00:16.4]} 53. Kd7 {[%clk 0:00:20.8]} 53... d2 {[%clk 0:00:17.3]} 54. Kd6
{[%clk 0:00:21]} 54... d1=R# {[%clk 0:00:18.2]} 0-1

[Event "*** Titled Tuesday Blitz"]
[Site "Chess.com"]
[Date "2021.04.20"]
[Round "11"]
[White "Matols"]
[Black "buhomurciano"]
[Result "0-1"]
[WhiteElo "2241"]
[BlackElo "2197"]
[TimeControl "180+1"]
[EndTime "12:06:34 PDT"]
[Termination "buhomurciano won by resignation"]

1. d4 {[%clk 0:03:00.9]} 1... d5 {[%clk 0:02:47.8]} 2. c4 {[%clk 0:03:00]} 2...
e6 {[%clk 0:02:45.8]} 3. Nf3 {[%clk 0:02:59.9]} 3... c6 {[%clk 0:02:45.5]} 4. g3
{[%clk 0:02:58.9]} 4... Nf6 {[%clk 0:02:39.5]} 5. Bg2 {[%clk 0:02:57.5]} 5...
dxc4 {[%clk 0:02:39.5]} 6. O-O {[%clk 0:02:55.5]} 6... Be7 {[%clk 0:02:33.8]} 7.
Ne5 {[%clk 0:02:52.2]} 7... O-O {[%clk 0:02:29.3]} 8. Nxc4 {[%clk 0:02:50.9]}
8... c5 {[%clk 0:02:24.9]} 9. dxc5 {[%clk 0:02:47.7]} 9... Bxc5 {[%clk
0:02:18.3]} 10. Nc3 {[%clk 0:02:45.6]} 10... Nc6 {[%clk 0:02:15.6]} 11. a3
{[%clk 0:02:41.6]} 11... Qe7 {[%clk 0:01:38.7]} 12. b4 {[%clk 0:02:35]} 12...
Bd4 {[%clk 0:01:38.3]} 13. Bb2 {[%clk 0:02:33.4]} 13... Rd8 {[%clk 0:01:24.1]}
14. Qb3 {[%clk 0:02:32.3]} 14... a6 {[%clk 0:01:02]} 15. e3 {[%clk 0:02:31.2]}
15... Ba7 {[%clk 0:01:01.4]} 16. b5 {[%clk 0:02:21.2]} 16... axb5 {[%clk
0:00:46.7]} 17. Nxb5 {[%clk 0:02:20.3]} 17... e5 {[%clk 0:00:41.4]} 18. Nxa7
{[%clk 0:02:14.6]} 18... Rxa7 {[%clk 0:00:39.3]} 19. Rfd1 {[%clk 0:02:08.8]}
19... Be6 {[%clk 0:00:36.8]} 20. Qc3 {[%clk 0:01:37]} 20... Nd5 {[%clk
0:00:20.8]} 21. Qe1 {[%clk 0:01:26.4]} 21... f6 {[%clk 0:00:19.7]} 22. Rac1
{[%clk 0:01:21]} 22... Raa8 {[%clk 0:00:19]} 23. Be4 {[%clk 0:00:44.7]} 23...
Rac8 {[%clk 0:00:17.5]} 24. Qe2 {[%clk 0:00:41.6]} 24... Qf7 {[%clk 0:00:16.1]}
25. Bxd5 {[%clk 0:00:33.3]} 25... Bxd5 {[%clk 0:00:15.6]} 26. Nb6 {[%clk
0:00:33]} 26... Bb3 {[%clk 0:00:09.2]} 27. Nxc8 {[%clk 0:00:26.1]} 27... Bxd1
{[%clk 0:00:07.9]} 28. Rxd1 {[%clk 0:00:24]} 28... Rxc8 {[%clk 0:00:08.2]} 29.
Qb5 {[%clk 0:00:22.3]} 29... Qc7 {[%clk 0:00:07.8]} 30. Qd5+ {[%clk 0:00:21.3]}
30... Kf8 {[%clk 0:00:06.5]} 31. Qc5+ {[%clk 0:00:20.6]} 31... Qe7 {[%clk
0:00:06.2]} 32. Qxe7+ {[%clk 0:00:18.7]} 32... Kxe7 {[%clk 0:00:06.1]} 33. Kf1
{[%clk 0:00:18.9]} 33... Rd8 {[%clk 0:00:05.3]} 34. Ke2 {[%clk 0:00:18.5]} 34...
Rxd1 {[%clk 0:00:04.8]} 35. Kxd1 {[%clk 0:00:19.4]} 35... Ke6 {[%clk 0:00:05.3]}
36. Kc2 {[%clk 0:00:19.5]} 36... Kd5 {[%clk 0:00:05.5]} 37. Kd3 {[%clk
0:00:19.5]} 37... e4+ {[%clk 0:00:05.8]} 38. Kc3 {[%clk 0:00:19.3]} 38... Ne5
{[%clk 0:00:05.5]} 39. a4 {[%clk 0:00:18.7]} 39... Nd3 {[%clk 0:00:05.3]} 40. f3
{[%clk 0:00:16.7]} 40... Nxb2 {[%clk 0:00:04.8]} 41. fxe4+ {[%clk 0:00:16.6]}
41... Kxe4 {[%clk 0:00:05.1]} 42. Kxb2 {[%clk 0:00:16.9]} 42... Kxe3 {[%clk
0:00:05.7]} 43. Kc3 {[%clk 0:00:16.2]} 43... f5 {[%clk 0:00:05.5]} 44. Kc4
{[%clk 0:00:16.4]} 44... g5 {[%clk 0:00:05.9]} 45. Kb5 {[%clk 0:00:16.6]} 45...
f4 {[%clk 0:00:06.4]} 46. gxf4 {[%clk 0:00:16.5]} 46... gxf4 {[%clk 0:00:07.3]}
47. Kb6 {[%clk 0:00:16.8]} 47... f3 {[%clk 0:00:08.2]} 48. Kxb7 {[%clk
0:00:17.2]} 48... f2 {[%clk 0:00:08.7]} 49. a5 {[%clk 0:00:17.6]} 49... f1=Q
{[%clk 0:00:09.1]} 50. a6 {[%clk 0:00:17.9]} 50... Qb5+ {[%clk 0:00:09.2]} 51.
Ka7 {[%clk 0:00:17.1]} 51... Kd4 {[%clk 0:00:08.6]} 52. h4 {[%clk 0:00:17.2]}
52... Kc5 {[%clk 0:00:07.1]} 53. h5 {[%clk 0:00:17.5]} 53... Kc6 {[%clk
0:00:06.9]} 54. h6 {[%clk 0:00:17.4]} 54... Kc7 {[%clk 0:00:05.9]} 0-1